Department_family,Entity,PaymentDAte,Expense_type,Expense_area,Supplier,Transaction_number,Amount,VAT_Registration_Number
NHS,Heart of England NHS Foundation Trust,24/06/2011,FURNITURE OFFICE & COMPUTER EQUIPMENT,DIABETES,DIGITAL HEALTHCARE LTD,51,25842.18,
NHS,Heart of England NHS Foundation Trust,24/06/2011,EXTERNAL GENERAL SERVICE CONTRACTS,INFORMATION,RECALL LIMITED,1060012905,49012.5,
NHS,Heart of England NHS Foundation Trust,24/06/2011,LABORATORY EQUIPMENT,LABORATORY MEDICINE,SIEMENS HEALTHCARE DIAGNOSTICS LTD,106579164,78495.05,
NHS,Heart of England NHS Foundation Trust,24/06/2011,DRUGS,PHARMACY,GILEAD SCIENCES LTD,11093401,31896,
NHS,Heart of England NHS Foundation Trust,24/06/2011,DRUGS,PHARMACY,GILEAD SCIENCES LTD,11093602,31896,
NHS,Heart of England NHS Foundation Trust,24/06/2011,OTHER ESTABLISHMENT COSTS,HEALTHCARE GOVERNANCE,BEACHCROFT LLP,1227702,32874.82,
NHS,Heart of England NHS Foundation Trust,24/06/2011,NON RESIDENTIAL BUILDINGS,CAPITAL,EH HUMPHRIES (NORTON) LTD,23611,55211.87,
NHS,Heart of England NHS Foundation Trust,24/06/2011,NON RESIDENTIAL BUILDINGS,CAPITAL,TERRAPIN LTD,7011094,82758.45,
NHS,Heart of England NHS Foundation Trust,24/06/2011,CONTRACT HOTEL SERVICES,HOTEL SERVICES,G4S INTEGRATED SERVICES UK LTD,715686,697473.69,
NHS,Heart of England NHS Foundation Trust,24/06/2011,TELEPHONES & COMMUNICATIONS,INFORMATION,KCOM GROUP PUBLIC LIMITED COMPANY T/A AFFINITI,KIB0000347292,84818.4,
NHS,Heart of England NHS Foundation Trust,24/06/2011,UTILITIES,FACILITIES MANAGEMENT,ENER-G COMBINED POWER,SOLLIHULL 6,177021.56,
NHS,Heart of England NHS Foundation Trust,17/06/2011,NON RESIDENTIAL BUILDINGS,CAPITAL,KEY CONSTRUCTION (MIDLANDS) LTD,100918,202110.59,
NHS,Heart of England NHS Foundation Trust,17/06/2011,RAW MATERIALS AND CONSUMABLES,ALL WARDS AND DEPTS,NHS SUPPLY CHAIN.,1012028714,312226.88,
NHS,Heart of England NHS Foundation Trust,17/06/2011,EXTERNAL GENERAL SERVICE CONTRACTS,SECURITY,APCOA FACILITIES MANAGEMENT UK LTD,105168,83425.19,
NHS,Heart of England NHS Foundation Trust,17/06/2011,DRUGS,PHARMACY,GILEAD SCIENCES LTD,11092522,5316,
NHS,Heart of England NHS Foundation Trust,17/06/2011,NON RESIDENTIAL BUILDINGS,CAPITAL,DAVID PARADINE (ELECTRICAL) LTD,12443,36000,
NHS,Heart of England NHS Foundation Trust,17/06/2011,DRUGS,PHARMACY,ROCHE PRODUCTS LTD,1321371093,28121.94,
NHS,Heart of England NHS Foundation Trust,17/06/2011,FURNITURE OFFICE & COMPUTER EQUIPMENT,PHARMACY,JAC COMPUTER SERVICES LTD,15959,76062,
NHS,Heart of England NHS Foundation Trust,17/06/2011,BUILDING & ENGINEERING CONTRACTS & EQUIPMENT,OBSTETRICS & GYNAECOLOGY,NHS SUPPLY CHAIN.,2011000475,13774.15,
NHS,Heart of England NHS Foundation Trust,17/06/2011,BUILDING & ENGINEERING CONTRACTS & EQUIPMENT,OBSTETRICS & GYNAECOLOGY,NHS SUPPLY CHAIN.,2011000475,17475,
NHS,Heart of England NHS Foundation Trust,17/06/2011,MSSE,THEATRES / DSU / SSU,NHS SUPPLY CHAIN.,2012001309,30082.72,
NHS,Heart of England NHS Foundation Trust,17/06/2011,RADIOLOGY,RADIOLOGY,NHS SUPPLY CHAIN.,2012001375,31918.81,
NHS,Heart of England NHS Foundation Trust,17/06/2011,RADIOLOGY,RADIOLOGY,NHS SUPPLY CHAIN.,2012001390,44228.23,
NHS,Heart of England NHS Foundation Trust,17/06/2011,RADIOLOGY,RADIOLOGY,NHS SUPPLY CHAIN.,2012001393,108454.1,
NHS,Heart of England NHS Foundation Trust,17/06/2011,RADIOLOGY,RADIOLOGY,NHS SUPPLY CHAIN.,2012001394,37415.08,
NHS,Heart of England NHS Foundation Trust,17/06/2011,UTILITIES,FACILITIES MANAGEMENT,SOUTHERN ELECTRIC PLC,481303018/0036,69271.92,
NHS,Heart of England NHS Foundation Trust,17/06/2011,RENTS RATES & LEASES,FACILITIES MANAGEMENT,SOLIHULL M.B.C.,50348121/2011/12,54558,
NHS,Heart of England NHS Foundation Trust,17/06/2011,RENTS RATES & LEASES,FACILITIES MANAGEMENT,BIRMINGHAM CITY COUNCIL (RATES),6001348845NDRSUN/2,58455,
NHS,Heart of England NHS Foundation Trust,17/06/2011,RENTS RATES & LEASES,FACILITIES MANAGEMENT,BIRMINGHAM CITY COUNCIL (RATES),6002939384NDRYAY2011/12,99157,
NHS,Heart of England NHS Foundation Trust,17/06/2011,RENTS RATES & LEASES,HUMAN RESOURCES,BIRMINGHAM CITY COUNCIL (RATES),6004505326NRDYAA2011/12,8616.7,
NHS,Heart of England NHS Foundation Trust,17/06/2011,UTILITIES,FACILITIES MANAGEMENT,TOTAL GAS AND POWER LTD,67241510/11,91456.17,
NHS,Heart of England NHS Foundation Trust,17/06/2011,UTILITIES,FACILITIES MANAGEMENT,SOUTHERN ELECTRIC PLC,791455824/0002,47690.82,
NHS,Heart of England NHS Foundation Trust,17/06/2011,DRUGS,PHARMACY,NOVARTIS PHARMACEUTICALS UK  LTD,90808831,40122.52,
NHS,Heart of England NHS Foundation Trust,17/06/2011,DRUGS,PHARMACY,NOVARTIS PHARMACEUTICALS UK  LTD,90851919,44552.33,
NHS,Heart of England NHS Foundation Trust,17/06/2011,DRUGS,PHARMACY,NOVARTIS PHARMACEUTICALS UK  LTD,90861015,44590.54,
NHS,Heart of England NHS Foundation Trust,17/06/2011,DRUGS,PHARMACY,NOVARTIS PHARMACEUTICALS UK  LTD,90865625,62620.69,
NHS,Heart of England NHS Foundation Trust,17/06/2011,DRUGS,PHARMACY,JANSSEN-CILAG LIMITED,91708474,31846.68,
NHS,Heart of England NHS Foundation Trust,17/06/2011,OTHER CREDITORS < ONE YEAR,BALANCE SHEET,CHILDCARE VOUCHERS LTD,IN042025276,66653.49,
NHS,Heart of England NHS Foundation Trust,16/06/2011,OTHER ESTABLISHMENT COSTS,HEALTHCARE GOVERNANCE,CASH BOOK PAYMENTS,COLEY & TILLEY SOLICITORS/1,29108.57,
NHS,Heart of England NHS Foundation Trust,14/06/2011,NON RESIDENTIAL BUILDINGS,CAPITAL,CASH BOOK PAYMENTS,BIRMINGHAM CITY COUNCIL/26,26765,
NHS,Heart of England NHS Foundation Trust,10/06/2011,RAW MATERIALS AND CONSUMABLES,ALL WARDS AND DEPTS,NHS SUPPLY CHAIN.,1012020098,291776.91,
NHS,Heart of England NHS Foundation Trust,10/06/2011,RAW MATERIALS AND CONSUMABLES,ALL WARDS AND DEPTS,NHS SUPPLY CHAIN.,1012023836,295585.97,
NHS,Heart of England NHS Foundation Trust,10/06/2011,DRUGS,PHARMACY,GILEAD SCIENCES LTD,11093112,63792,
NHS,Heart of England NHS Foundation Trust,10/06/2011,RADIOLOGY,RADIOLOGY,NHS SUPPLY CHAIN.,2012001146,31303.4,
NHS,Heart of England NHS Foundation Trust,10/06/2011,MEDICAL EQUIPMENT,CAPITAL,RICHARD WOLF  UK LTD,221328,30859.5,
NHS,Heart of England NHS Foundation Trust,10/06/2011,LABORATORY EQUIPMENT,LABORATORY MEDICINE,HEALTH PROTECTION AGENCY,5297098,487263.5,
NHS,Heart of England NHS Foundation Trust,10/06/2011,INFORMATION TECHNOLOGY,CAPITAL,DELL COMPUTER CORPORATION LTD,7401841169,30433.2,
NHS,Heart of England NHS Foundation Trust,10/06/2011,BLOOD,LABORATORY MEDICINE,NHS BLOOD AND TRANSPLANT (NHSBT),803311,154429.8,
NHS,Heart of England NHS Foundation Trust,10/06/2011,BLOOD,LABORATORY MEDICINE,NHS BLOOD AND TRANSPLANT (NHSBT),804097,154429.8,
NHS,Heart of England NHS Foundation Trust,10/06/2011,BLOOD,LABORATORY MEDICINE,NHS BLOOD AND TRANSPLANT (NHSBT),804098,59679.77,
NHS,Heart of England NHS Foundation Trust,10/06/2011,PURCHASE OF HEALTH CARE SERVICES,CLIN HAEM / ONCOLOGY,HEALTHCARE AT HOME LTD,OP/2427087,26931.39,
NHS,Heart of England NHS Foundation Trust,10/06/2011,PURCHASE OF HEALTH CARE SERVICES,CLIN HAEM / ONCOLOGY,HEALTHCARE AT HOME LTD,OP/2464770,28462.87,
NHS,Heart of England NHS Foundation Trust,10/06/2011,NHS CREDITORS < ONE YEAR,BALANCE SHEET,ENER-G COMBINED POWER,SOILIHULL5,177021.56,
NHS,Heart of England NHS Foundation Trust,03/06/2011,FURNITURE OFFICE & COMPUTER EQUIPMENT,PHARMACY,JAC COMPUTER SERVICES LTD,15958,35004,
NHS,Heart of England NHS Foundation Trust,03/06/2011,X-RAY EQUIPMENT - MAINTENANCE,RADIOLOGY,CSC COMPUTER SCIENCES CORPORATION,5201219804,38964,
NHS,Heart of England NHS Foundation Trust,03/06/2011,NON RESIDENTIAL BUILDINGS,CAPITAL,E MANTON LIMITED,8998,38449.2,
NHS,Heart of England NHS Foundation Trust,03/06/2011,MSSE,GENERAL SURGERY,COVIDIEN (UK) COMMERCIAL LTD ( TYCO ),J864455,65064.39,
NHS,Heart of England NHS Foundation Trust,03/06/2011,DRUGS,PHARMACY,NHSBSA PRESCRIPTION PRICING DIVISION,PHS1000027502,54532.86,
NHS,Heart of England NHS Foundation Trust,03/06/2011,CONTRACT HOTEL SERVICES,HOTEL SERVICES,INITIAL HOSPITAL SERVICES LTD,SINV/00031896,731744.31,
NHS,Heart of England NHS Foundation Trust,01/06/2011,OTHER CREDITORS < ONE YEAR,BALANCE SHEET,CHILDCARE VOUCHERS LTD,INV040977918,67272.3,
